Cogmind - Beta 12 X1 @@@ ROGUE MODE // 2022.07.09 @ 07:19:46 Player: Stryker Result: Destroyed by G-34 Mercenary with Small Laser Performance ------------- Evolutions (0) 0 Regions Visited (1) 200 Robots Destroyed (11) 55 Value Destroyed (245) 245 Prototype IDs (0) 0 Alien Tech Used (0) 0 Bonus (0) 0 TOTAL SCORE: 500 Bonus ------- None Cogmind --------- Core Integrity 0/250 Matter 282/300 Energy 249/250 System Corruption 0% Temperature Cool (12) Movement Rolling (100) Location -10/Materials Parts ------- > --- POWER (1) -------- (None) > --- PROPULSION (2) --- Compact Wheel > --- UTILITY (2) ------ Medium Battery > --- WEAPON (2) ------- Light Assault Rifle > --- INVENTORY (5) ---- Wheel Wheel Structural Scanner EM Pulse Gun Small Laser Peak State ------------ > --- POWER ------------ Light Ion Engine > --- PROPULSION ------- Wheel Wheel > --- UTILITY ---------- Improved Terrain Scanner Seismic Detector > --- WEAPON ----------- Medium Laser Light Assault Rifle > --- INVENTORY -------- Wheel Wheel EM Pulse Gun [Rating: 9] Favorites ----------- Power Light Ion Engine Engine Light Ion Engine Propulsion Wheel Wheel Wheel Utility Medium Battery Device Seismic Detector Storage Medium Battery Weapon Light Assault Rifle Energy Gun Medium Laser Ballistic Gun Light Assault Rifle Build | -11 -10 ------- Run | Scr Mat Slots Evolved . | . . Power . | . . Propulsion . | . . Utility . | . . Weapon . | . . Parts Attached 13 | 9 4 Power 2 | 1 1 Engine 2 | 1 1 Core . | . . Reactor . | . . Propulsion 5 | 4 1 Treads . | . . Leg . | . . Wheel 5 | 4 1 Hover . | . . Flight . | . . Utility 4 | 2 2 Device 2 | 2 . Storage 2 | . 2 Processor . | . . Hackware . | . . Protection . | . . Artifact . | . . Weapon 2 | 2 . Energy Gun 1 | 1 . Energy Cannon . | . . Ballistic Gun 1 | 1 . Ballistic Cannon . | . . Launcher . | . . Special Weapon . | . . Impact Weapon . | . . Slashing Weapon . | . . Piercing Weapon . | . . Special Melee Weapon . | . . Unidentified Prototypes . | . . Parts Lost 6 | . 6 Power 2 | . 2 Propulsion 2 | . 2 Utility 2 | . 2 Weapon . | . . Highest Loss Streak 2 | . 2 To Critical Strikes . | . . Average Slot Usage (%) 90 | . 90 Engine 13 | . 13 Wheel 27 | . 27 Device 9 | . 9 Storage 11 | . 11 Energy Gun 13 | . 13 Ballistic Gun 14 | . 14 Naked Turns . | . . Heaviest Build 30 | 8 30 Greatest Support 26 | 20 26 Greatest Overweight (x) 1 | . 1 Average Overweight (x) . | . . Largest Inventory Capacity 15 | 5 15 Average Capacity 5 | 5 5 Most Carried 5 | 3 5 Average Carried 3 | 1 4 Final Capacity 5 | 5 5 Final Carried 5 | 3 5 Class Distribution -------------------- 60% | Mutant 39% | Scavenger-Mutant Dominant Class ---------------- Mutant | -10/Materials Resources | -11 -10 ----------- Run | Scr Mat Matter Collected 347 | 295 52 Remotely . | . . Salvage Created 412 | 65 347 Parts 26 | 8 18 Haulers Intercepted . | . . Recyclers Shooed . | . . Parts Field Recycled . | . . Retrieved Matter . | . . Parts Self-Destructed . | . . Prevented . | . . Kills | -11 -10 ------- Run | Scr Mat Combat Hostiles Destroyed 8 | 1 7 Guns 8 | 1 7 Classes Destroyed 4 | 2 2 Tunneler 1 | 1 . Recycler 2 | . 2 Swarmer 3 | . 3 Grunt 5 | 1 4 Best Kill Streak 3 | 2 3 Combat Bots Only 3 | 1 3 Max Kills in Single Turn 1 | 1 1 Gunslinging . | . . Exploded . | . . Melee . | . . Uniques/NPCs Destroyed . | . . Combat | -11 -10 -------- Run | Scr Mat Damage Taken 664 | 46 618 Core 252 | 12 240 Absorbed by Shields . | . . Core Remaining (%) 95 | 95 . Volleys Fired 59 | 5 54 Largest 2 | 2 2 Hottest 70 | 70 70 Shots Fired 104 | 10 94 Gun 104 | 10 94 Cannon . | . . Launcher . | . . Special . | . . Kinetic 59 | 5 54 Thermal 45 | 5 40 Explosive . | . . Electromagnetic . | . . Robot Hit Streak 6 | 2 6 Robot Miss Streak 3 | 3 2 Penetration Max . | . . Secondary Targets 3 | . 3 Max Gunslinging Chain 1 | . 1 Shots Hit Robots 57 | 4 53 Core Hits 23 | 2 21 Critical Kills 1 | 1 . Critical Parts Destroyed . | . . Critical Strikes 2 | 1 1 Burn 1 | . 1 Destroy 1 | 1 . Melee Attacks . | . . Impact . | . . Slashing . | . . Piercing . | . . Sneak Attacks . | . . Combat Hostiles . | . . Follow-up Attacks . | . . Damage Inflicted 571 | 47 524 Guns 571 | 47 524 Cannons . | . . Explosions . | . . Melee . | . . Ramming . | . . Kinetic 258 | 10 248 Thermal 313 | 37 276 Explosive . | . . Electromagnetic . | . . Impact . | . . Slashing . | . . Piercing . | . . Highest Corruption . | . . Average Corruption . | . . Corruption Purged . | . . Corruption Blocked . | . . Overload Shots . | . . Overflow Damage . | . . Projectiles . | . . Explosions . | . . Melee . | . . Knockbacks . | . . Impact . | . . Kinetic . | . . Secondary . | . . Self-Inflicted Damage . | . . Shots . | . . Rammed . | . . Targets Rammed . | . . Kicked . | . . Crushed . | . . Highest Temperature 160 | 96 160 Average Temperature 56 | 45 57 Received Heat Transfer 288 | 24 264 Siege Activations . | . . Robots Corrupted . | . . Combat Hostiles . | . . Parts Fried . | . . Impact Corruptions . | . . Robots Melted . | . . Combat Hostiles . | . . Parts Melted 4 | 1 3 Heat Transferred 999 | 111 888 Parts Sabotaged . | . . Parts Stolen . | . . Parts Stripped . | . . Power Chain Reactions . | . . Missiles Intercepted . | . . Alert | -11 -10 ------- Run | Scr Mat Peak Influence 178 | 25 178 Initial 16 | . 16 Average 51 | 11 69 Maximum Alert Level . | . . Low Security (%) 100 | 100 100 Level 1 . | . . Level 2 . | . . Level 3 . | . . Level 4 . | . . Level 5 . | . . High Security . | . . Max Security . | . . Squads Dispatched 2 | . 2 Investigation 1 | . 1 Extermination . | . . Reinforcement 1 | . 1 Assault . | . . Garrison . | . . Intercept . | . . Searches Triggered . | . . Construction Impeded . | . . Haulers Reinforced . | . . Active Scanning Responses . | . . Cargo Convoy Interrupts . | . . Stealth | -11 -10 --------- Run | Scr Mat Distress Signals . | . . Communications Jammed . | . . Distress Signals . | . . Times Spotted 17 | 1 16 Peak Tracking Total 5 | 1 5 Tactical Retreats 1 | . 1 Traps | -11 -10 ------- Run | Scr Mat Traps Triggered 1 | . 1 Indirectly . | . . Trap Hack Attempts . | . . Triggered . | . . Disarmed . | . . Reprogrammed . | . . Reused . | . . Traps Extracted . | . . Installed . | . . Triggered . | . . Machines | -11 -10 ---------- Run | Scr Mat Machines Disabled . | . . Max in Single Turn . | . . Machines Sabotaged . | . . Garrisons Compromised . | . . Overloaded Fab Kills . | . . Hacking | -11 -10 --------- Run | Scr Mat Machines Accessed 1 | . 1 Terminals 1 | . 1 Fabricators . | . . Repair Stations . | . . Recycling Units . | . . Scanalyzers . | . . Garrison Access . | . . Total Hacks 3 | . 3 Successful 2 | . 2 Failed 1 | . 1 Catastrophic . | . . Database Lockouts . | . . Manual . | . . Terminals 3 | . 3 Fabricators . | . . Repair Stations . | . . Recycling Units . | . . Scanalyzers . | . . Garrison Access . | . . Terminal Hacks 2 | . 2 Record 1 | . 1 Emergency Access Points 1 | . 1 Fabricator Hacks . | . . Repair Station Hacks . | . . Recycling Unit Hacks . | . . Scanalyzer . | . . Garrison Access Hacks . | . . Unauthorized Hacks . | . . Terminals . | . . Fabricators . | . . Repair Stations . | . . Recycling Units . | . . Scanalyzers . | . . Garrison Access . | . . Data Cores Recovered . | . . Used . | . . Hacking Detections 1 | . 1 Full Trace Events 1 | . 1 Feedback Events . | . . Feedback Blocked . | . . Robot Schematics Acquired . | . . Robots Built . | . . Authchips . | . . Time . | . . Total Robot Build Rating . | . . Part Schematics Acquired . | . . Parts Built . | . . Authchips . | . . Time . | . . Total Part Build Rating . | . . Parts Repaired . | . . Time . | . . Parts Recycled . | . . Recycled Matter . | . . Retrieved Matter . | . . Retrieved Components . | . . Parts Scanalyzed . | . . Part Schematics Acquired . | . . Parts Damaged . | . . Bothacking | -11 -10 ------------ Run | Scr Mat Used RIF Installer . | . . Robots Hacked . | . . Non-combat . | . . Combat . | . . Robot Hacks Applied . | . . Relay Couplers Released . | . . Fabnet Peak Effective % . | . . Robots Rewired . | . . Allies Hacked . | . . Hacks Repelled . | . . Allies | -11 -10 -------- Run | Scr Mat Total Allies . | . . Largest Group . | . . Highest-Rated Group . | . . Highest-Rated Ally . | . . Total Orders . | . . Ally Attacks . | . . Total Damage . | . . Kills . | . . Allies Corrupted . | . . Allies Melted . | . . Intel | -11 -10 ------- Run | Scr Mat Robot Analysis Total . | . . Derelict Logs Recovered . | . . Drone Launches . | . . Drone Recoveries . | . . Exploration | -11 -10 ------------- Run | Scr Mat Turns Passed 747 | 232 515 Spaces Moved 713 | 267 446 Core 35 | 35 . Treads . | . . Legs . | . . Wheels 678 | 232 446 Hover . | . . Flight . | . . Fastest Speed 50 | 50 80 Average Speed 80 | 76 82 Slowest Speed 105 | 80 105 Overloaded Moves . | . . Propulsion Burnouts . | . . Robots Hopped . | . . Cave-ins Triggered . | . . Exploration Rate (%) 22 | 9 36 Regions Visited 1 Branch Regions . Pre-discovered Areas . | . . Known Exits Taken . | . . Unknown Exits Taken 1 | 1 . Scrap Searched . | . . Spaces Dug . | . . Terrain Destroyed . | . . Melee . | . . Projectile . | . . AOE . | . . Terrain Rammed . | . . Walls Destroyed . | . . Machines Disabled . | . . Actions | -11 -10 --------- Run | Scr Mat Total 790 | 282 508 Wait . | . . Move 712 | 266 446 Hop . | . . Pick Up 4 | 2 2 Fast Attach 10 | 6 4 Attach 1 | 1 . Detach . | . . Swap 2 | 2 . Drop 2 | . 2 Fire 59 | 5 54 Melee . | . . Ram . | . . Kick . | . . Crush . | . . Escape Stasis . | . . Rewire . | . . Trap . | . . Miscellaneous . | . . Route ------- -11/Scrapyard -10/Materials History --------- Turn | Location | Event 2 | -11/Scrapyard | Met Revision 17 112 | -11/Scrapyard | Discovered new exit (range 8) 233 | -11/Scrapyard | Entered Materials 613 | -10/Materials | Build established: Mutant 725 | -10/Materials | Core integrity fell below 50% 745 | -10/Materials | Core integrity fell below 20% 748 | -10/Materials | Destroyed by G-34 Mercenary with Small Laser Last Messages --------------- 00607_ Acquired 15 matter. 00671_ Tractor Beam melted. 00671_ R-06 Scavenger destroyed. 00672_ Acquired 1 matter. 00682_ K-01 Serf collects debris. 00693_ O-16 Technician: "IFF HANDSHAKE FAILED. SECURING TERMINAL." 00699_ ALERT: Hostiles spotted, dispatching reinforcements to Terminal M001. 00707_ Acquired Lrg. Storage Unit. The Lrg. Storage Unit has expanded your inventory capacity. Items held in inventory do not count towards total mass and therefore cannot slow you down. Overweight warning: You are carrying more than your current propulsion can efficiently support, which slows movement; see status page ('s') or the top of the parts list for the specific mass vs. support values. 00721_ G-34 Mercenary destroyed. 00724_ Dropped Lrg. Storage Unit. 00724_ Dropped Med. Laser. 00738_ Wheel destroyed. 00740_ Ion Engine destroyed. Map ----- +----------------------------------------------------+ | | | | | | | | | | | | | | | | | | | | | | | ?????????????????????????????????????????????????? | | ?????????????????????????????????????????????????? | | ?????????????????????????????????????????????????? | | ?????????????????????????????????????????????????? | | ?????????????????????????????????????????????????? | | ?????????????????????????????????????????????????? | | ?????????????????????????????????????????????????? | | ?????????????????????????????????????????????????? | | ?????????????????????????????????????????????????? | | ?????????????????????????????????????????????????? | | ?????????????????????????????????????????????????? | | ??????????????????????######?????????????????????? | | ?????????????????????##!! !##???#????????????????? | | ?????????????????????#! !#?? #????????????????? | | ?????????????????????#! [@ !#? #######??????????? | | ???????##+#+########## # ?????????? | | ???????# g g ?????????? | | ???????+ g * ?????????? | | ???????# g t ########?????????? | | ???????#### a####+### ########????????????????? | | ??????????# #? ??# #? ????????????????????? | | ??????????# ##""???# #? ??" =??#######???????? | | ??+???????# ##"????# # ?""" ??# #???????? | | ??????????# ##?????# # """ ## """ #?????#?? | | ??????????# #??????# + ## """ #???? #?? | | ??????????# #??????# # |! ## """ #??? #?? | | ??????????# ##+#####*==#?? |! ## """ #??T #?? | | ????????#?# # ! T # %=#???? ## """ #?? #?? | | ??????????# # # #?????? ## #?/ #?? | | ??????????# # """ + ##############+### #??? | | ??????????# + """ # *=!!%=%== #??? | | ??????????# # """ # !########### [ #??? | | ??????????# # # = #????????#" """ #??? | | ##+######## ######## %!#????????#T """ ##?? | | # ## #??????# %#????????#" """ #?? | | # ## ##?????# #????????## """ #?? | | # """ # ####### +?????????# / #?? | | # """"" # # ????????# #?? | | # """"" + T # ????????# #?? | +----------------------------------------------------+ Best States ------------- Heat Dissipation 25 Energy Generation 10 Energy Capacity 400 Matter Stores 300 Matter Capacity 300 Sight Range 16 Terrain Scan Range 16 Terrain Scan Density 10 Evasion (%) 50 Item Schematics ----------------- None Robot Schematics ------------------ None Fabricated ------------ Nothing Alien Tech Used ----------------- None Achievements -------------- None Challenges ------------ None Game ------ Seed ArcThermalBrace Manual? 0 Play Time 00:25:14 Cumulative 1302.0 hours Start 2022.07.09 @ 06:51:58 End 2022.07.09 @ 07:19:46 Sessions 1 Manual Loads 0 Difficulty Rogue Special Mode None Game No. 361 Rogue 361 Adventurer 0 Explorer 0 Win Type - Total 44 Types 27/6/7/3/0/0/0/1/0 Lore% 81 Gallery% 84 Achievement% 73 Wizard Run 0 Options --------- ASCII 0 Keyboard 1 Movement Arrows Keybinds 0 Fullscreen 1 Font 24/Crisp Map View 76x50 Tactical HUD 1 Map Filters NONE Filters NONE Steam X RUN: b9a460b8-3fc5-4f65-b08f-a8d8b0139442